Cogmind - Beta 13 @@@ ROGUE MODE // 2024.04.15 @ 22:15:59 Player: mehbruh Result: Destroyed by Y-45 Defender with Beam Rifle Performance ------------- Evolutions (1) 500 Regions Visited (3) 600 Robots Destroyed (30) 150 Value Destroyed (566) 566 Prototype IDs (6) 120 Alien Tech Used (0) 0 Bonus (0) 0 TOTAL SCORE: 1936 Bonus ------- None Cogmind --------- Core Integrity 0/400 Matter 277/300 Energy 100/100 System Corruption 60% Temperature Cool (9) Movement Core (100) Ox1 Location -9/Materials Parts ------- > --- POWER (1) -------- (None) > --- PROPULSION (3) --- (None) > --- UTILITY (3) ------ Small Storage Unit > --- WEAPON (2) ------- (None) > --- INVENTORY (8) ---- Flight Unit Improved Flight Unit Seismic Detector Hacking Suite Improved EM Shotgun Grenade Launcher Peak State ------------ > --- POWER ------------ Light Ion Engine > --- PROPULSION ------- Improved Flight Unit Improved Flight Unit Improved Flight Unit > --- UTILITY ---------- Small Storage Unit Weight Redist. System Hacking Suite > --- WEAPON ----------- Improved EM Shotgun Heavy Assault Rifle > --- INVENTORY -------- Flight Unit Improved Flight Unit Seismic Detector Hacking Suite Light Assault Rifle Grenade Launcher [Rating: 22] Favorites ----------- Power Light Ion Engine Engine Light Ion Engine Propulsion Flight Unit Flight Unit Flight Unit Utility Light Armor Plating Device Weight Redist. System Storage Small Storage Unit Hackware Hacking Suite Protection Light Armor Plating Weapon Assault Rifle Energy Gun Improved EM Shotgun Ballistic Gun Assault Rifle Launcher Grenade Launcher Build | -11 -10 -10 -9 ------- Run | Yrd Mat Min Mat Slots Evolved 2 | . . . 2 Power . | . . . . Propulsion 1 | . . . 1 Utility 1 | . . . 1 Weapon . | . . . . Parts Attached 25 | 2 14 . 9 Power 2 | . 2 . . Engine 2 | . 2 . . Core . | . . . . Reactor . | . . . . Propulsion 5 | . 2 . 3 Treads . | . . . . Leg . | . . . . Wheel . | . . . . Hover . | . . . . Flight 5 | . 2 . 3 Utility 6 | . 4 . 2 Device 1 | . 1 . . Storage 2 | . 1 . 1 Processor . | . . . . Hackware 1 | . . . 1 Protection 2 | . 2 . . Artifact . | . . . . Weapon 12 | 2 6 . 4 Energy Gun 1 | . . . 1 Energy Cannon . | . . . . Ballistic Gun 10 | 2 6 . 2 Ballistic Cannon . | . . . . Launcher 1 | . . . 1 Special Weapon . | . . . . Impact Weapon . | . . . . Slashing Weapon . | . . . . Piercing Weapon . | . . . . Special Melee Weapon . | . . . . Unidentified Prototypes . | . . . . Parts Lost 9 | . 1 . 8 Power 1 | . . . 1 Propulsion 3 | . . . 3 Utility 3 | . 1 . 2 Weapon 2 | . . . 2 Highest Loss Streak 6 | . 1 . 6 To Critical Strikes . | . . . . Average Slot Usage (%) 66 | . 49 100 84 Engine 8 | . 7 14 10 Flight 14 | . 5 28 26 Device 6 | . 3 14 8 Storage 1 | . . . 4 Hackware 2 | . . . 7 Protection 6 | . 5 14 6 Energy Gun 1 | . . . 4 Ballistic Gun 22 | . 26 28 16 Naked Turns . | . . . . Heaviest Build 14 | 3 12 9 14 Greatest Support 21 | 3 14 14 21 Greatest Overweight (x) 3 | . 3 . . Average Overweight (x) . | . . . . Largest Inventory Capacity 8 | 5 8 5 8 Average Capacity 5 | 5 5 5 6 Most Carried 6 | 4 5 4 6 Average Carried 4 | 2 3 4 5 Final Capacity 8 | 5 5 5 8 Final Carried 6 | 4 4 4 6 Class Distribution -------------------- 96% | Mutant 3% | Scavenger-Mutant Dominant Class ---------------- Mutant | -10/Materials Mutant | -10/Mines Mutant | -9/Materials Resources | -11 -10 -10 -9 ----------- Run | Yrd Mat Min Mat Matter Collected 710 | 220 299 . 191 Remotely . | . . . . Salvage Created 894 | . 379 . 515 Parts 79 | . 26 . 53 Haulers Intercepted 2 | . 1 . 1 Recyclers Shooed 3 | . . . 3 Parts Field Recycled . | . . . . Retrieved Matter . | . . . . Parts Self-Destructed . | . . . . Prevented . | . . . . Kills | -11 -10 -10 -9 ------- Run | Yrd Mat Min Mat Combat Hostiles Destroyed 17 | . 9 . 8 Guns 13 | . 9 . 4 AOE 4 | . . . 4 Classes Destroyed 9 | . 5 . 4 Worker 2 | . . . 2 Builder 3 | . 1 . 2 Hauler 2 | . 1 . 1 Recycler 2 | . . . 2 Operator 2 | . . . 2 Watcher 2 | . 1 . 1 Swarmer 7 | . 3 . 4 Grunt 7 | . 6 . 1 Sentry 3 | . . . 3 Best Kill Streak 8 | . 6 . 8 Combat Bots Only 5 | . 5 . 5 Max Kills in Single Turn 3 | . 2 . 3 Gunslinging . | . . . . Exploded 3 | . . . 3 Melee . | . . . . Uniques/NPCs Destroyed . | . . . . Combat | -11 -10 -10 -9 -------- Run | Yrd Mat Min Mat Hostile Shots Fired 103 | . 43 . 60 Missed 35 | . 12 . 23 Damage Taken 1301 | . 353 . 948 Core 476 | . 76 . 400 Absorbed by Shields . | . . . . Core Remaining (%) 84 | 100 . 69 . Volleys Fired 67 | . 30 . 37 Largest 2 | . 2 . 2 Hottest 68 | . 40 . 68 Shots Fired 133 | . 60 . 73 Gun 130 | . 60 . 70 Cannon . | . . . . Launcher 3 | . . . 3 Special . | . . . . Kinetic 113 | . 60 . 53 Thermal . | . . . . Explosive 3 | . . . 3 Electromagnetic 17 | . . . 17 Robot Hit Streak 8 | . 6 . 8 Robot Miss Streak 4 | . 3 . 4 Penetration Max . | . . . . Secondary Targets 1 | . 1 . . Max Gunslinging Chain 1 | . 1 . . Shots Hit Robots 85 | . 39 . 46 Core Hits 50 | . 22 . 28 Critical Kills 1 | . 1 . . Critical Parts Destroyed 2 | . 1 . 1 Critical Strikes 3 | . 2 . 1 Destroy 3 | . 2 . 1 Melee Attacks . | . . . . Impact . | . . . . Slashing . | . . . . Piercing . | . . . . Sneak Attacks . | . . . . Combat Hostiles . | . . . . Follow-up Attacks . | . . . . Damage Inflicted 1616 | . 487 . 1129 Guns 1083 | . 487 . 596 Cannons . | . . . . Explosions 327 | . . . 327 Melee . | . . . . Ramming 206 | . . . 206 Kinetic 893 | . 487 . 406 Thermal 56 | . . . 56 Explosive 271 | . . . 271 Electromagnetic 190 | . . . 190 Impact . | . . . . Slashing . | . . . . Piercing . | . . . . Highest Corruption 58 | . . . 58 Average Corruption 29 | . . . 29 Corruption Purged . | . . . . Corruption Blocked . | . . . . Effects 2 | . . . 2 Message Errors 1 | . . . 1 Matter Fused 1 | . . . 1 Overload Shots . | . . . . Overflow Damage 34 | . . . 34 Projectiles . | . . . . Explosions 34 | . . . 34 Melee . | . . . . Knockbacks . | . . . . Impact . | . . . . Kinetic . | . . . . Secondary . | . . . . Self-Inflicted Damage 217 | . . . 217 Shots 1 | . . . 1 Rammed . | . . . . Targets Rammed . | . . . . Kicked . | . . . . Crushed . | . . . . Highest Temperature 104 | . 21 . 104 Average Temperature 22 | . 7 . 27 Received Heat Transfer 363 | . 198 . 165 Siege Activations . | . . . . Robots Corrupted . | . . . . Combat Hostiles . | . . . . Parts Fried . | . . . . Impact Corruptions . | . . . . Robots Melted . | . . . . Combat Hostiles . | . . . . Parts Melted . | . . . . Heat Transferred 100 | . . . 100 Parts Sabotaged . | . . . . Parts Stolen . | . . . . Parts Stripped . | . . . . Power Chain Reactions 1 | . . . 1 Alert | -11 -10 -10 -9 ------- Run | Yrd Mat Min Mat Peak Influence 378 | . 324 79 378 Initial 64 | . . 64 30 Average 146 | . 132 75 197 Maximum Alert Level 1 | . 1 . 1 Low Security (%) 70 | 100 74 100 54 Level 1 29 | . 25 . 45 Level 2 . | . . . . Level 3 . | . . . . Level 4 . | . . . . Level 5 . | . . . . High Security . | . . . . Max Security . | . . . . Squads Dispatched 1 | . . . 1 Investigation . | . . . . Extermination . | . . . . Reinforcement 1 | . . . 1 Assault . | . . . . Garrison . | . . . . Intercept . | . . . . Searches Triggered . | . . . . Construction Impeded . | . . . . Haulers Reinforced . | . . . . Active Scanning Responses . | . . . . Cargo Convoy Interrupts . | . . . . Stealth | -11 -10 -10 -9 --------- Run | Yrd Mat Min Mat Distress Signals 2 | . 2 . . Communications Jammed . | . . . . Distress Signals . | . . . . Times Spotted 27 | . 15 . 12 Peak Tracking Total 5 | . 5 . 5 Tactical Retreats 1 | . 1 . . Traps | -11 -10 -10 -9 ------- Run | Yrd Mat Min Mat Traps Triggered 2 | . 2 . . Indirectly . | . . . . Trap Hack Attempts . | . . . . Triggered . | . . . . Disarmed . | . . . . Reprogrammed . | . . . . Reused . | . . . . Traps Extracted . | . . . . Installed . | . . . . Triggered . | . . . . Machines | -11 -10 -10 -9 ---------- Run | Yrd Mat Min Mat Machines Disabled . | . . . . Max in Single Turn . | . . . . Machines Repaired . | . . . . Machines Dismantled . | . . . . Machines Sabotaged . | . . . . Overloaded Fab Kills . | . . . . Hacking | -11 -10 -10 -9 --------- Run | Yrd Mat Min Mat Machines Accessed 11 | . 9 . 2 Terminals 10 | . 8 . 2 Fabricators . | . . . . Repair Stations . | . . . . Recycling Units 1 | . 1 . . Scanalyzers . | . . . . Garrison Access . | . . . . Total Hacks 33 | . 28 . 5 Successful 15 | . 12 . 3 Failed 18 | . 16 . 2 Catastrophic 3 | . 3 . . Database Lockouts . | . . . . Manual 17 | . 17 . . Terminals 28 | . 23 . 5 Fabricators . | . . . . Repair Stations . | . . . . Recycling Units 5 | . 5 . . Scanalyzers . | . . . . Garrison Access . | . . . . Terminal Hacks 10 | . 7 . 3 Robot Analysis 1 | . 1 . . Prototype ID Bank 3 | . 2 . 1 Locate Traps 3 | . 2 . 1 Hauler Manifests 2 | . 1 . 1 Registered Components 1 | . 1 . . Fabricator Hacks . | . . . . Repair Station Hacks . | . . . . Recycling Unit Hacks 1 | . 1 . . Retrieve Components 1 | . 1 . . Scanalyzer . | . . . . Garrison Access Hacks . | . . . . Unauthorized Hacks 4 | . 4 . . Terminals 3 | . 3 . . Botnet 3 | . 3 . . Fabricators . | . . . . Repair Stations . | . . . . Recycling Units 1 | . 1 . . Mask 1 | . 1 . . Scanalyzers . | . . . . Garrison Access . | . . . . Data Cores Recovered 1 | . . . 1 Used . | . . . . Hacking Detections 11 | . 9 . 2 Full Trace Events 1 | . 1 . . Feedback Events . | . . . . Feedback Blocked . | . . . . Robot Schematics Acquired . | . . . . Robots Built . | . . . . Authchips . | . . . . Time . | . . . . Total Robot Build Rating . | . . . . Part Schematics Acquired . | . . . . Parts Built . | . . . . Authchips . | . . . . Time . | . . . . Total Part Build Rating . | . . . . Parts Repaired . | . . . . Time . | . . . . Parts Recycled . | . . . . Recycled Matter . | . . . . Retrieved Matter . | . . . . Retrieved Components 8 | . 8 . . Parts Scanalyzed . | . . . . Part Schematics Acquired . | . . . . Parts Damaged . | . . . . Bothacking | -11 -10 -10 -9 ------------ Run | Yrd Mat Min Mat Used RIF Installer . | . . . . Robots Hacked . | . . . . Non-combat . | . . . . Combat . | . . . . Robot Hacks Applied . | . . . . Relay Couplers Released . | . . . . Fabnet Peak Effective % . | . . . . Robots Rewired . | . . . . Allies Hacked . | . . . . Hacks Repelled . | . . . . Allies | -11 -10 -10 -9 -------- Run | Yrd Mat Min Mat Total Allies . | . . . . Largest Group . | . . . . Highest-Rated Group . | . . . . Highest-Rated Ally . | . . . . Total Orders . | . . . . Ally Attacks . | . . . . Total Damage . | . . . . Kills . | . . . . Allies Corrupted . | . . . . Allies Melted . | . . . . Intel | -11 -10 -10 -9 ------- Run | Yrd Mat Min Mat Robot Analysis Total 1 | . 1 . . Derelict Logs Recovered 1 | . . 1 . Drone Launches . | . . . . Drone Recoveries . | . . . . Exploration | -11 -10 -10 -9 ------------- Run | Yrd Mat Min Mat Turns Passed 852 | 24 458 75 295 Spaces Moved 1091 | 34 653 203 201 Core 469 | 34 435 . . Treads . | . . . . Legs . | . . . . Wheels . | . . . . Hover . | . . . . Flight 622 | . 218 203 201 Fastest Speed 34 | 50 37 37 34 Average Speed 43 | 50 47 37 36 Slowest Speed 200 | 50 200 37 37 Overloaded Moves . | . . . . Propulsion Burnouts . | . . . . Robots Hopped 9 | . 5 . 4 Cave-ins Triggered . | . . . . Exploration Rate (%) 45 | 3 93 68 18 Regions Visited 3 Branch Regions 1 Pre-discovered Areas . | . . . . Known Exits Taken . | . . . . Unknown Exits Taken 3 | 1 1 1 . Scrap Searched . | . . . . Spaces Dug . | . . . . Terrain Destroyed 32 | . . . 32 Melee . | . . . . Projectile . | . . . . AOE 32 | . . . 32 Terrain Rammed 55 | . . . 55 Walls Destroyed . | . . . . Machines Disabled . | . . . . Actions | -11 -10 -10 -9 --------- Run | Yrd Mat Min Mat Total 1292 | 39 735 202 316 Wait 46 | . 35 . 11 Move 1070 | 33 642 202 193 Hop 9 | . 5 . 4 Pick Up 11 | 4 4 . 3 Fast Attach 11 | 2 7 . 2 Attach 6 | . 5 . 1 Detach 3 | . 3 . . Swap 8 | . 2 . 6 Drop 6 | . 2 . 4 Fire 67 | . 30 . 37 Melee . | . . . . Ram 55 | . . . 55 Kick . | . . . . Crush . | . . . . Escape Stasis . | . . . . Rewire . | . . . . Trap . | . . . . Miscellaneous . | . . . . Route ------- -11/Scrapyard -10/Materials (discovered 5 exits: *Mat x3 / [*Min x2]) -10/Mines -9/Materials History --------- Turn | Location | Event 5 | -11/Scrapyard | Discovered new exit (range 15) 25 | -11/Scrapyard | Entered Materials 28 | -10/Materials | Discovered new exit (range 13) 67 | -10/Materials | Discovered new exit (range 9) 179 | -10/Materials | Discovered new exit (range 14) 302 | -10/Materials | Build established: Mutant 391 | -10/Materials | Discovered new exit (range 16) 444 | -10/Materials | Discovered new exit (range 11) 483 | -10/Materials | Entered Mines 554 | -10/Mines | Discovered new exit (range 14) 558 | -10/Mines | Entered Materials 558 | -9/Materials | Evolved 2 slots: Propulsion x1, Utility x1 779 | -9/Materials | System corruption reached 10% 817 | -9/Materials | System corruption reached 30% 819 | -9/Materials | Core integrity fell below 50% 849 | -9/Materials | Core integrity fell below 20% 853 | -9/Materials | Destroyed by Y-45 Defender with Beam Rifle Last Messages --------------- 00848_ Destabilizing: Core damaged (-20). 00848_ K-01 Serf collects debris. 00849_ U-05 Engineer lays Concrete. 00849_ Slammed into Wall. 00850_ Destabilizing: Core damaged (-8). 00850_ Broken Lgt. Assault Rifle destroyed. 00850_ Broken Imp. Flight Unit destroyed. 00850_ U-05 Engineer lays Concrete. 00851_ Slammed into Wall. 00851_ Destabilizing: Core damaged (-16). 00851_ R-06 Scavenger collects Sml. Storage Unit. 00852_ K-01 Serf collects debris. 00852_ Slammed into Wall. 00852_ Broken Imp. Flight Unit destroyed. 00852_ System corrupted by crushing effect (+2). 00852_ Destabilizing: System corrupted (+1). 00853_ Slammed into Wall. 00853_ Destabilizing: System corrupted (+2). 00853_ Destabilizing: Core damaged (-8). Map ----- +----------------------------------------------------+ | ???# ????# #??????????????????????????????????? | | ??????????#% #??????????????????????????????????? | | ??????????# #??????????????????????????????????? | | ??????????# #??????????????????????????????????? | | ??????????# +??????????????????????????????????? | | ??????????# #??????????????????????????????????? | | ########### #???????#########??????????????????? | | ## #???????# #????????????????? | | T ## #???????# """ """ #????????????????? | | ## #???????# """ """ #????????????????? | | """ """ ## #???????# """ """ #????????????????? | | """ """ ## +???????# #????????????????? | | """ """ ## #???????# #????????????????? | | ## #???????# #????????????????? | | ## ##??????# #????????????????? | | ######+### ##########+###############????????? | | * #?#= = #????????? | | =[T |!= ! #?# #????????? | | %=%= !*! ^ !% ### #????????? | | ####+#####=!=%[###/#######!* ### #????????? | | /#####/##### """" ##[= ### +????????? | | """ ## %! # """" ##% ### ! ! #????????? | | """ ]## # """" ##* ### #????????? | | """ ##[ """ # [ ##*!*### #????????? | | ## """"" # ##%u[%Yr #????????? | | ######### """"" # = #@=!=# #########????????? | | ????????# """"" ######## k # # ?????????? | | ????????# """ #?????# # #?????????????????? | | ????????+ ????????###[ # #?????????????????? | | ????????# ?????######## =[# #?????????????????? | | ????????#####?????# %= u ###?????????????????? | | ?????????????????# =! [ # #?????????????????? | | ?????????????????# * ! # #?????????????????? | | ##????????????????# [##########?????????????????? | | ??????????????????# * #??????????????????????????? | | ??????????????????#== #??????????????????????????? | | ???????#+########## % #??????????????????????????? | | ????# !!=#??????????????????????????? | | ????+ !%= #??????????????????????????? | | ????# = #??????????????????????????? | | ??????## #########+##??????????????????????????? | | ??????????????????? ???????????????????????????? | | ??????????????????? ??????????????????????????? | | ?????????????????? ?????????????????????????? | | ??????????????????"" """?????????????????????????? | | ?????????????????""" """ ????????????????????????? | | ?????????????????""" """ #???????????????????????? | | ??????????????????? ?? ???????????????????????? | | ??????????????????? ???##??????????????????????? | | ???????????????????###???????????????????????????? | +----------------------------------------------------+ Best States ------------- Heat Dissipation 28 Energy Generation 10 Energy Capacity 125 Matter Stores 300 Matter Capacity 300 Sight Range 16 Terrain Scan Density 10 Additional Mass Support 6 Armor Coverage 150 Evasion (%) 62 Offensive Hacking 10 Item Schematics ----------------- None Robot Schematics ------------------ None Fabricated ------------ Nothing Alien Tech Used ----------------- None Achievements -------------- None Challenges ------------ None Game ------ Seed SuspensionScanMicroactuators Manual? 0 Play Time 00:18:07 Cumulative 43.4 hours Start 2024.04.15 @ 14:29:42 End 2024.04.15 @ 22:15:59 Sessions 5 Manual Loads 0 Difficulty Rogue Special Mode None Game No. 37 Rogue 37 Adventurer 0 Explorer 0 Win Type - Total 2 Types 2/0/0/0/0/0/0/0/0 Lore% 34 Gallery% 35 Achievement% 39 Wizard Run 0 Options --------- Layout 1 ASCII 0 Keyboard 0 Movement Arrows Keybinds 0 Fullscreen 1 Font 24/Smallcaps Map View 50x35 Zoom Use 0% Tactical HUD 1 Map Filters NONE Filters NONE Steam 1 RUN: de9c487a-3cab-4a2a-a63b-8b68556b6a58